[Event "German Bundesliga 2021-22"]
[Site "Germany"]
[Date "2022.04.10"]
[Round "4.6"]
[White "Dautov, Rustem"]
[Black "Begnis, Nikolaos"]
[Result "1-0"]
[ECO "E65"]
[WhiteElo "2596"]
[BlackElo "2278"]
[Annotator "TA"]
[PlyCount "133"]
[EventDate "2022.03.05"]
[EventType "team-tourn"]
[EventCountry "GER"]
[SourceTitle "playchess.com"]
[Source "ChessBase"]
[SourceQuality "1"]
[TimeControl "40/5400+30:1800+30"]

{[%evp 20,133,43,40,69,60,56,61,62,54,88,80,103,47,55,48,43,13,0,0,0,0,0,-267,-266,-400,-247,-242,-207,-204,-135,-133,-139,-133,-111,-127,0,0,0,0,0,0,0,0,0,0,0,0,0,0,0,0,0,0,0,0,0,0,0,0,0,0,0,0,0,0,0,0,0,0,0,0,0,0,1105,0,12850,27999,27999,27999,27999,27999,27999,-28000,-28000,-28000,-28000,-28000,-28000,-28000,27993,27993,27994,27994,27995,27995,27980,27980,27994,27994,27995,27970,27998,27994,27995,27995,27998,27998,27999,27999,27993,27993,27997,27997,27999,27999]} 1. d4 {[%emt 0:00:00]} Nf6 {[%emt 0:00:00]} 2. Nf3 {[%emt 0:00:00]} g6 {[%emt 0:00:00]} 3. c4 {[%emt 0:00:00]} Bg7 {[%emt 0:00:00]} 4. g3 {[%emt 0:00:00]} O-O {[%emt 0:00:00]} 5. Bg2 {[%emt 0:00:00]} d6 {[%emt 0:00:00]} 6. Nc3 {[%emt 0:00:00]} c5 {[%emt 0:00:00]} 7. O-O {[%emt 0:00:00]} Nc6 {[%emt 0:00:00]} 8. dxc5 {[%emt 0:00:00]} dxc5 {[%emt 0:00:00]} 9. Bf4 {[%emt 0:00:00]} Be6 {[%emt 0:00:17]} 10. Ne5 {[%emt 0:00:00]} Nxe5 {[%emt 0:30:47]} 11. Bxe5 {[%emt 0:00:14]} Nd7 {[%emt 0:24:02] 11...Qb6 is the hot move. E65: King's Indian: Fianchetto: 6...c5 7 0-0 without d5 by White.} 12. Bxg7 {[%emt 0:19:33] &Bianco is more active.} Kxg7 {[%emt 0:00:21]} 13. b3 {[%emt 0:12:45]} Qc7 {[%emt 0:09:31] [#] White is slightly better.} 14. f4 $146 {[%emt 0:05:38]} ({Predecessor:} 14. Qd3 Nf6 15. Rfd1 a6 16. Nd5 Bxd5 17. cxd5 Rad8 18. Rac1 Qa5 19. Qc2 b6 20. e4 {1-0 (39) Bok,B (2619)-Matamoros Franco,C (2486) Chess.com INT 2021}) 14... Nf6 {[%emt 0:02:56]} 15. e4 {[%emt 0:03:10][%cal Be2e4,Be4e5][%mdl 32]} Rad8 {[%emt 0:06:36]} 16. Qf3 {[%emt 0:11:18]} (16. Qe2 $16) 16... Rd2 $14 {[%emt 0:07:07]} 17. e5 {[%emt 0:04:28]} Ng4 {[%emt 0:02:41]} 18. Nd5 {[%emt 0:05:41]} Qa5 {[%emt 0:03:23] Strongly threatening ...Rd8.} 19. Nxe7 {[%emt 0:01:53]} Rfd8 {[%emt 0:00:11]} 20. f5 {[%emt 0:15:29] Dancing on a razor blade.} gxf5 {[%emt 0:00:07]} 21. Kh1 $2 {[%emt 0:03:44][%mdl 8192] [#]} (21. Nxf5+ Bxf5 22. Bh3 (22. Qxf5 $2 Rxg2+ 23. Kh1 Rxh2+ 24. Kg1 Rg2+ 25. Kh1 Rxg3 $19) 22... Rc2 $1 $17) (21. Bh3 $1 $11 {and White stays safe.} Nxh2 22. Nxf5+ Kh8 23. Qf4 Nxf1 24. Qh6 Bxf5 25. Bxf5) 21... Rxg2 $1 $19 {[%emt 0:03:08]} 22. Kxg2 {[%emt 0:03:50]} (22. Qxg2 Rd2 23. Qf3 (23. Qxb7 Rxh2+ 24. Kg1 Qc3 25. Nxf5+ Bxf5 26. Qf3 Qd4+) 23... Qd8 $19) (22. Nxf5+ {only move.} Bxf5 23. Qxf5 Rxh2+ 24. Kg1 Rg2+ 25. Kh1 Rh2+ 26. Kg1 Rg2+ 27. Kh1 Rxg3 28. Rf4) 22... Qd2+ {[%emt 0:00:43]} 23. Rf2 {[%emt 0:00:08]} Nxf2 {[%emt 0:00:19]} 24. Qxf2 {[%emt 0:00:02]} Qc3 {[%emt 0:02:03]} (24... Kf8 25. Nd5 Bxd5+ 26. cxd5 Qxd5+ 27. Kg1) 25. Re1 {[%emt 0:00:49]} ({But not} 25. Nxf5+ $2 Kf8 26. Qxc5+ Kg8 $19) 25... Rd2 {[%emt 0:00:51]} 26. Re2 {[%emt 0:00:14]} Rxe2 {[%emt 0:00:12]} 27. Qxe2 {[%emt 0:00:02]} f4 {[%emt 0:02:17]} ({Better is} 27... Qd4 $17 28. Nd5 Bxd5+ 29. cxd5 Qxd5+ 30. Kf2 Kg6) 28. Nd5 {[%emt 0:03:10]} Bxd5+ {[%emt 0:02:37]} 29. cxd5 $11 {[%emt 0:00:09][%mdl 4096] Endgame KQ-KQ} f3+ {[%emt 0:00:02]} 30. Qxf3 {[%emt 0:00:10]} Qxe5 {[%emt 0:00:01]} 31. Qd3 {[%emt 0:05:29]} Qd6 {[%emt 0:01:15]} 32. a4 {[%emt 0:02:55]} Kf8 {[%emt 0:01:13]} 33. h4 {[%emt 0:01:54]} h6 {[%emt 0:01:31]} 34. Qf5 {[%emt 0:01:31]} b6 {[%emt 0:01:12]} 35. g4 {[%emt 0:01:16]} a6 {[%emt 0:00:15]} 36. g5 {[%emt 0:00:59]} hxg5 {[%emt 0:00:52]} 37. h5 {[%emt 0:00:57]} b5 {[%emt 0:01:17]} (37... g4 38. Qg5 f6 39. Qf5 $18) 38. axb5 {[%emt 0:00:32]} axb5 {[%emt 0:00:01]} 39. Qxg5 {[%emt 0:00:25]} f6 {[%emt 0:01:39]} 40. Qh6+ {[%emt 0:00:55]} Ke8 {[%emt 0:00:26]} 41. Qg6+ {[%emt 0:31:05]} Kf8 {[%emt 0:00:00]} 42. Qf5 {[%emt 0:00:00] Hoping for h6.} Kg7 {[%emt 0:00:00]} 43. Kf3 {[%emt 0:00:00] Qe6 is the strong threat.} c4 $1 {[%emt 0:04:38]} 44. bxc4 {[%emt 0:00:00]} ({Much less strong is} 44. Qg4+ $6 Kf8 $16) 44... bxc4 {[%emt 0:00:11]} 45. Qg4+ {[%emt 0:00:00]} Kf8 {[%emt 0:00:51]} 46. Qxc4 {[%emt 0:00:00] Threatens to win with h6.} Qa3+ $2 {[%emt 0:00:57][%mdl 8192] [#]} (46... Qe5 $11) 47. Kg4 $2 {[%emt 0:00:00]} (47. Ke4 $1 $18 {[%cal Re4f5]} Qe7+ 48. Kd4 (48. Kf3 Qe5 $14) 48... Qe5+ 49. Kc5) 47... f5+ $2 {[%emt 0:05:04][%mdl 8192]} (47... Qe3 $11) 48. Kxf5 $18 {[%emt 0:00:00]} Qf3+ {[%emt 0:11:06]} 49. Kg5 {[%emt 0:00:00]} Qg2+ {[%emt 0:00:29]} 50. Kf5 {[%emt 0:00:00]} Qf3+ {[%emt 0:00:24]} 51. Ke5 {[%emt 0:00:00]} Qxh5+ {[%emt 0:00:10]} 52. Kd6 {[%emt 0:00:00]} Qh6+ $4 {[%emt 0:00:49][%mdl 8192]} (52... Qg6+ 53. Kc7 Qf7+ 54. Kb6 Qd7) 53. Kc7 {[%emt 0:00:00]} Qh7+ {[%emt 0:01:55]} 54. Kb6 {[%emt 0:00:00]} Qb1+ $4 {[%emt 0:01:05][%mdl 8192]} (54... Qd7 55. Qc6 Ke7) 55. Qb5 {[%emt 0:00:58] White mates.} Qg6+ {[%emt 0:03:02]} 56. Qc6 {[%emt 0:00:20]} Qb1+ {[%emt 0:00:05]} 57. Kc7 {[%emt 0:00:33]} Qa2 {[%emt 0:04:05]} 58. d6 {[%emt 0:01:31]} Qh2 {[%emt 0:03:09]} 59. Kc8 {[%emt 0:00:19]} Qh8 {[%emt 0:00:42]} 60. Qc7 {[%emt 0:01:03]} Qa1 {[%emt 0:00:32]} 61. Qc6 {[%emt 0:01:23]} Qh8 {[%emt 0:00:20]} 62. Qf3+ {[%emt 0:01:24]} Ke8 {[%emt 0:00:14]} 63. Qb7 {[%emt 0:01:03]} Qc3+ {[%emt 0:01:01]} 64. Qc7 {[%emt 0:01:10]} Qh3+ {[%emt 0:00:38]} 65. d7+ {[%emt 0:00:08]} Ke7 {[%emt 0:00:12]} 66. Qe5+ {[%emt 0:00:40]} Kf7 {[%emt 0:00:08]} 67. Kc7 {[%emt 0:00:18] Both players deserved the win here.  Weighted Error Value: White=0.29 (precise) /Black=0.27 (precise)} 1-0

[Event "German Bundesliga 2021-22"]
[Site "Germany"]
[Date "2022.04.10"]
[Round "4.6"]
[White "Braun, Arik"]
[Black "Froewis, Georg"]
[Result "1-0"]
[ECO "D45"]
[WhiteElo "2587"]
[BlackElo "2449"]
[Annotator "TA"]
[PlyCount "85"]
[EventDate "2022.03.05"]
[EventType "team-tourn"]
[EventCountry "GER"]
[SourceTitle "playchess.com"]
[Source "ChessBase"]
[SourceQuality "1"]
[TimeControl "40/5400+30:1800+30"]

{[%evp 23,85,13,8,0,14,0,0,0,14,0,0,0,0,0,85,-8,-8,-12,18,20,6,13,59,56,50,31,42,12,104,100,107,95,92,52,59,48,93,85,70,66,68,67,162,86,96,89,86,86,86,86,182,174,174,141,151,133,160,160,160,143,456,450,427,414]} 1. d4 {[%emt 0:00:00]} d5 {[%emt 0:00:00]} 2. c4 {[%emt 0:00:00]} e6 {[%emt 0:00:00]} 3. Nc3 {[%emt 0:00:00]} c6 {[%emt 0:00:00]} 4. e3 {[%emt 0:00:00]} Nf6 {[%emt 0:00:00]} 5. Nf3 {[%emt 0:00:00]} Nbd7 {[%emt 0:00:00]} 6. Qc2 {[%emt 0:00:00]} Bd6 {[%emt 0:00:00]} 7. b3 {[%emt 0:00:00]} O-O {[%emt 0:00:00]} 8. Be2 {[%emt 0:00:00]} b6 {[%emt 0:00:33]} 9. O-O {[%emt 0:00:37]} Bb7 {[%emt 0:00:05]} 10. Rd1 {[%emt 0:01:15]} Qe7 {[%emt 0:01:09]} 11. Bb2 {[%emt 0:15:19]} Rfe8 {[%emt 0:02:45] 11...Rfd8 is a critical line.} 12. Rac1 {[%emt 0:02:28]} Rac8 {[%emt 0:01:35]} 13. Qb1 {[%emt 0:03:38] D45: Semi-Slav: 5 e3.} c5 {[%emt 0:04:44]} 14. cxd5 {[%emt 0:08:03]} exd5 {[%emt 0:05:01]} 15. g3 {[%emt 0:00:39] The position is equal.} a6 {[%emt 0:01:47] [#]} 16. Nh4 $146 {[%emt 0:09:02]} ({Predecessor:} 16. a4 Nf8 17. Bf1 Ne6 18. Bg2 Red8 19. dxc5 bxc5 20. Nh4 Bb8 21. Nf5 Qf8 22. a5 {½-½ (46) Maiorov,N (2463)-Drygalov,A (2509) Cheliabinsk 2021}) 16... g6 {[%emt 0:01:31] Against Nf5} 17. dxc5 {[%emt 0:01:58]} Nxc5 {[%emt 0:05:57]} 18. Bf3 {[%emt 0:06:14][%cal Rf3d5]} Nce4 {[%emt 0:14:20] [#]} (18... Rcd8 $11) 19. Ne2 {[%emt 0:07:04]} (19. Nxd5 $1 $16 Bxd5 20. Rxc8 Rxc8 21. Bxf6 Nxf6 22. Bxd5) 19... Bc5 $11 {[%emt 0:11:55][%cal Oe4f2]} 20. Nd4 {[%emt 0:04:25]} Bb4 {[%emt 0:04:11]} (20... Nxf2 21. Kxf2 Qxe3+ 22. Kg2 $16) 21. Rxc8 {[%emt 0:04:32]} Rxc8 {[%emt 0:00:42]} 22. Rc1 {[%emt 0:00:36]} Nd2 {[%emt 0:02:07]} (22... Rc5 $11) 23. Rxc8+ $14 {[%emt 0:02:42]} Bxc8 {[%emt 0:00:06]} 24. Qc2 {[%emt 0:02:25]} Nxf3+ {[%emt 0:00:59]} 25. Ndxf3 {[%emt 0:04:39]} (25. Nhxf3 $5 {[%cal Rc2c8]} Qc5 26. Qd1 $11) 25... Bh3 {[%emt 0:01:04]} (25... Bb7 $1 $11 {keeps the balance.}) 26. Qc6 $16 {[%emt 0:08:10][%csl LRb6,LRf6]} Qe4 {[%emt 0:03:46][%cal Oe4d3] Hoping for ...Qd3!} 27. Qc1 $36 {[%emt 0:00:20][%mdl 2048] Threatens to win with Ng5. White is in control.} Qe7 {[%emt 0:01:31]} 28. a3 {[%emt 0:01:30]} Bd6 {[%emt 0:01:57]} 29. Qc3 $1 {[%emt 0:00:46]} Kg7 {[%emt 0:05:25] [#]} 30. b4 $1 {[%emt 0:00:52]} h6 {[%emt 0:01:32]} 31. Nd4 {[%emt 0:02:41][%cal Bf3d4,Bd4e2,Be2c1,Bc1d3,Bd3e5,Be5c6][%mdl 32]} Kh7 {[%emt 0:07:11]} 32. Ne2 {[%emt 0:02:46] Pair of Knights!} Kg7 {[%emt 0:02:39]} (32... g5 $14) 33. Qd4 {[%emt 0:01:35]} (33. Ng2 $18 {And now Ngf4 would win.} g5 34. f3) 33... g5 {[%emt 0:06:10]} 34. Nf3 {[%emt 0:00:14]} Kg6 {[%emt 0:00:43]} 35. Qxb6 {[%emt 0:01:52]} Qe4 {[%emt 0:00:06]} 36. Qd4 {[%emt 0:05:22] Chess con chili.} ({But not} 36. Qxd6 $2 Qb1+ 37. Nc1 (37. Bc1 Qc2 38. Bd2 Qd1+ 39. Be1 Qxe2) 37... Qxb2 $19) 36... Qb1+ {[%emt 0:08:23]} (36... Qxd4 $16 {was worth a try.} 37. Nfxd4 (37. Nexd4 Bd7 $16) 37... Bd7) 37. Nc1 $18 {[%emt 0:00:18]} Qf5 {[%emt 0:00:08]} 38. Nd2 {[%emt 0:02:14]} Be7 {[%emt 0:02:34]} 39. Nd3 {[%emt 0:00:59]} Ne4 {[%emt 0:03:19]} 40. Nxe4 {[%emt 0:01:58]} dxe4 {[%emt 0:00:08] [#]} 41. Ne5+ {[%emt 0:33:08]} Kh7 $2 {[%emt 0:30:50][%mdl 8192]} (41... Kg7 $16) 42. Nc6 {[%emt 0:00:00][%csl Gb2][%cal Rd4g7]} f6 {[%emt 0:00:00][%cal Of5f3] ( -> ...Qf3!)} 43. Qa7 {[%emt 0:00:00] Weighted Error Value: White=0.12 (very precise) /Black=0.38} (43. Nxe7 {is a self mate.} Qf3) 1-0

[Event "German Bundesliga 2021-22"]
[Site "Germany"]
[Date "2022.04.10"]
[Round "4.6"]
[White "Heinemann, Thies"]
[Black "Von Herman, Ulf"]
[Result "1-0"]
[ECO "C00"]
[WhiteElo "2495"]
[BlackElo "2349"]
[Annotator "TA"]
[PlyCount "75"]
[EventDate "2022.03.05"]
[EventType "team-tourn"]
[EventCountry "GER"]
[SourceTitle "playchess.com"]
[Source "ChessBase"]
[SourceQuality "1"]
[TimeControl "40/5400+30:1800+30"]

{[%evp 9,75,22,31,26,39,30,31,23,14,20,66,66,88,59,75,59,68,46,43,7,10,10,12,16,16,7,36,0,45,10,0,-29,25,20,26,33,29,11,9,10,10,5,14,9,45,0,14,13,0,0,79,87,95,88,145,144,162,162,177,125,125,131,182,172,179,179,197,191]} 1. e4 {[%emt 0:00:00]} e6 {[%emt 0:00:00]} 2. Qe2 {[%emt 0:00:00]} d5 {[%emt 0:00:00]} 3. exd5 {[%emt 0:00:00]} Qxd5 {[%emt 0:00:00]} 4. Nc3 {[%emt 0:00:00]} Qd8 {[%emt 0:00:00]} 5. g3 {[%emt 0:00:00]} Nc6 {[%emt 0:00:00]} 6. Nf3 {[%emt 0:00:00][%cal Od2d4] C00: French: Unusual White 2nd moves.} Nge7 {[%emt 0:00:01] [#]} 7. Bg2 $146 {[%emt 0:00:00][%cal Od2d4]} ({Predecessor:} 7. Bh3 Ng6 8. b3 Nb4 9. d4 Be7 10. Bb2 Nd5 11. O-O-O Nxc3 12. Bxc3 O-O 13. Bg2 {1-0 (56) Safranska,A (2153)-Leconte,M (2251) Saint Quentin 2015}) 7... Nf5 {[%emt 0:03:56] Prevents d4.} 8. b3 {[%emt 0:00:00] White is slightly better.} Be7 {[%emt 0:08:58]} 9. Bb2 {[%emt 0:01:01]} Bf6 {[%emt 0:03:54]} (9... O-O $11 {might be stronger.}) 10. O-O-O $14 {[%emt 0:01:29]} Bd7 {[%emt 0:12:01]} 11. g4 {[%emt 0:10:58]} Nfd4 {[%emt 0:00:54]} 12. Nxd4 {[%emt 0:00:42]} Bxd4 {[%emt 0:00:19]} 13. f4 {[%emt 0:01:51]} Qf6 {[%emt 0:12:45]} 14. Rdf1 {[%emt 0:13:44]} (14. Nd5 $5 Bxb2+ 15. Kb1 $14) 14... O-O-O {[%emt 0:02:31]} 15. h4 {[%emt 0:05:37]} Qe7 {[%emt 0:10:40]} 16. Kb1 {[%emt 0:10:00]} Kb8 {[%emt 0:11:08]} 17. Qc4 {[%emt 0:07:05]} Qb4 {[%emt 0:02:42]} 18. Qd3 {[%emt 0:07:14]} Ne7 {[%emt 0:04:15]} 19. a3 {[%emt 0:18:58]} (19. Nd5 $5 Nxd5 20. Qxd4 $11 (20. Bxd4 Bc6 $11)) 19... Qb6 {[%emt 0:00:46]} 20. Qc4 {[%emt 0:01:49][%cal Oc3d5]} Bc6 {[%emt 0:02:01]} ({Better is} 20... h5 21. Nd5 Nxd5 22. Qxd4 (22. Bxd4 Bb5 $15) 22... Qxd4 23. Bxd4 hxg4) 21. Bxc6 $1 $11 {[%emt 0:01:09]} Qxc6 {[%emt 0:00:08]} 22. Qxc6 {[%emt 0:03:10]} Nxc6 {[%emt 0:00:07]} 23. f5 {[%emt 0:00:45]} exf5 {[%emt 0:06:27]} 24. Rxf5 {[%emt 0:02:20]} f6 {[%emt 0:01:33]} 25. Ne4 {[%emt 0:01:10]} h6 {[%emt 0:01:35]} 26. d3 {[%emt 0:02:17]} b6 {[%emt 0:03:26]} 27. Rhf1 {[%emt 0:04:38]} (27. c3 $5 {[%cal Rc3d4]}) 27... Ne7 {[%emt 0:01:24] [#] Hoping for ...Bxb2.} 28. R5f3 {[%emt 0:00:46]} Bxb2 {[%emt 0:01:31]} 29. Kxb2 {[%emt 0:00:07]} h5 {[%emt 0:00:43]} (29... Rd4 $11) 30. g5 $16 {[%emt 0:04:13]} f5 {[%emt 0:00:46] [#]} 31. Ng3 {[%emt 0:01:18] &Bianco is more active.} Rd4 {[%emt 0:01:17]} (31... g6 $142) 32. Re1 $36 {[%emt 0:01:08][%mdl 2048] Black is under strong pressure.} f4 {[%emt 0:07:27]} 33. Ne2 {[%emt 0:01:01]} Rd7 {[%emt 0:00:25]} 34. Rxf4 {[%emt 0:00:48]} (34. Nxf4 $18 Kb7 35. Rff1) 34... Ng6 {[%emt 0:00:58]} 35. Re4 {[%emt 0:00:01]} Rf7 {[%emt 0:00:39] Inhibits Rf1.} (35... Rf8 $16 36. Ng3 Nf4 37. Re8+ Rxe8 38. Rxe8+ Kb7) 36. Nd4 $18 {[%emt 0:00:33]} Kb7 {[%emt 0:00:19]} 37. b4 {[%emt 0:00:57]} a6 {[%emt 0:01:04]} 38. a4 {[%emt 0:00:22] Weighted Error Value: White=0.11 (very precise) /Black=0.19 (very precise)} 1-0

[Event "German Bundesliga 2021-22"]
[Site "Germany"]
[Date "2022.04.10"]
[Round "4.6"]
[White "Zelbel, Patrick"]
[Black "Braeuer, Franz"]
[Result "1/2-1/2"]
[ECO "C77"]
[WhiteElo "2461"]
[BlackElo "2428"]
[Annotator "TA"]
[PlyCount "70"]
[EventDate "2022.03.05"]
[EventType "team-tourn"]
[EventCountry "GER"]
[SourceTitle "playchess.com"]
[Source "ChessBase"]
[SourceQuality "1"]
[TimeControl "40/5400+30:1800+30"]

{[%evp 16,70,11,0,18,20,13,19,44,33,41,29,43,-1,43,0,0,0,0,7,7,0,0,0,24,41,37,0,0,-5,0,-21,-17,-56,-58,-54,-53,-81,-75,-71,0,-149,-143,-144,-136,-135,-44,-50,-39,-42,0,-70,0,-52,0,-47,0]} 1. e4 {[%emt 0:00:00]} e5 {[%emt 0:00:00]} 2. Nf3 {[%emt 0:00:00]} Nc6 {[%emt 0:00:00]} 3. Bb5 {[%emt 0:00:00][%cal Bf1b5,Bb5a4,Ba4b3,Bb3a2][%mdl 32]} a6 {[%emt 0:00:00]} 4. Ba4 {[%emt 0:00:00]} Nf6 {[%emt 0:00:00]} 5. O-O {[%emt 0:00:00]} Be7 {[%emt 0:00:00]} 6. d3 {[%emt 0:00:00]} b5 {[%emt 0:00:00]} 7. Bb3 {[%emt 0:00:00]} O-O {[%emt 0:00:00]} 8. Nc3 {[%emt 0:00:00]} d6 {[%emt 0:00:00]} 9. a3 {[%emt 0:00:00]} h6 {[%emt 0:15:15] C77: Ruy Lopez: 3...a6 4 Ba4 Nf6, unusual lines.} 10. h3 {[%emt 0:04:07]} Na5 {[%emt 0:00:08]} 11. Ba2 {[%emt 0:00:22]} c5 {[%emt 0:01:10] The position is equal.} 12. Nd5 {[%emt 0:06:18]} Nc6 {[%emt 0:02:44]} 13. c3 Be6 {[%emt 0:00:30][%cal Oc5c4] [#]} 14. Nh4 $146 {[%emt 0:23:28]} ({Predecessor:} 14. Be3 Kh8 15. Qd2 Nh7 16. b4 cxb4 17. axb4 f5 18. Nb6 Bxa2 19. Nxa8 Be6 20. exf5 Bxf5 21. Rxa6 Qc8 22. Rfa1 Bxh3 {1-0 (29) Manukyan,S (2113)-Tsyhanchuk,S (2283) Chess.com INT 2021}) 14... Rc8 {[%emt 0:00:30]} 15. Nf5 {[%emt 0:00:30]} Bxf5 {[%emt 0:00:30]} 16. exf5 {[%emt 0:00:30]} Nxd5 {[%emt 0:00:30]} 17. Bxd5 {[%emt 0:00:30]} Bf6 {[%emt 0:00:30]} 18. f4 {[%emt 0:00:30]} Ne7 {[%emt 0:00:30][%csl LRd5,LRf5][%cal Bc6e7,Be7d5,Bd5f4][%mdl 32]} 19. Ba2 {[%emt 0:00:30]} ({Much worse is} 19. Bb7 Rb8 20. Bf3 (20. Bxa6 $2 Qb6 $19) 20... Nxf5 $15) 19... c4 {[%emt 0:00:30][%cal Bc5c4,Bc4d3,Bd3d2][%mdl 32]} 20. fxe5 {[%emt 0:00:30]} dxe5 {[%emt 0:00:30]} 21. Qg4 {[%emt 0:00:30][%cal Rd3c4]} h5 $1 {[%emt 0:53:51]} ({Don't do} 21... Qxd3 22. Bxh6 Qd7 23. Rad1 Qa7+ 24. Kh1 $14) 22. Qxh5 {[%emt 0:31:40]} cxd3 {[%emt 0:00:30] aiming for ...d2.} 23. Bd2 {[%emt 0:00:30] Black must now prevent g4.} Nd5 {[%emt 0:03:37]} 24. Rae1 {[%emt 0:07:30]} Nf4 $1 $36 {[%emt 0:11:01][%mdl 2048] Black has the initiative.} 25. Bxf4 {[%emt 0:10:46]} exf4 {[%emt 0:00:30]} 26. Rxf4 {[%emt 0:00:30]} d2 {[%emt 0:02:29]} 27. Rd1 {[%emt 0:00:04]} Qb6+ {[%emt 0:00:30]} (27... Qe7 $17) 28. Kh1 {[%emt 0:00:30]} (28. Rf2 $1 $11 {was the only way to keep the balance.}) 28... Qe3 {[%emt 0:00:30][%mdl 1024] Black has strong compensation.} 29. Rff1 {[%emt 0:00:30] [#]} Rcd8 $1 {[%emt 0:00:30]} 30. Bb3 {[%emt 0:00:30] [#]} Rd7 {[%emt 0:00:30]} (30... Qa7 $1 $17 31. Qf3 Rfe8) 31. Qf3 $1 $15 {[%emt 0:00:30]} Qe5 {[%emt 0:00:30]} 32. Qf4 {[%emt 0:00:30]} Qe2 {[%emt 0:00:30]} 33. Qf3 {[%emt 0:00:30]} ({White should play} 33. Rf2 $11 Qe1+ 34. Rf1) 33... Qe5 {[%emt 0:00:30]} 34. Qf4 $1 {[%emt 0:00:30]} Qe2 {[%emt 0:00:30]} 35. Qf3 {[%emt 0:00:30]} Qe5 {[%emt 0:00:30] Weighted Error Value: White=0.21 (precise) /Black=0.15 (very precise)} (35... Re8 $15) 1/2-1/2

[Event "German Bundesliga 2021-22"]
[Site "Germany"]
[Date "2022.04.10"]
[Round "4.7"]
[White "Radovanovic, Nikola"]
[Black "Wagner, Dennis"]
[Result "1/2-1/2"]
[ECO "C48"]
[WhiteElo "2423"]
[BlackElo "2584"]
[Annotator "TA"]
[PlyCount "37"]
[EventDate "2022.03.05"]
[EventType "team-tourn"]
[EventCountry "GER"]
[SourceTitle "playchess.com"]
[Source "ChessBase"]
[SourceQuality "1"]
[TimeControl "40/5400+30:1800+30"]

{[%evp 16,37,2,0,0,0,0,0,0,0,0,0,0,0,0,3,0,0,0,0,7,0,0,0]} 1. e4 {[%emt 0:00:00]} e5 {[%emt 0:00:00]} 2. Nf3 {[%emt 0:00:00]} Nc6 {[%emt 0:00:00]} 3. Nc3 {[%emt 0:00:00]} Nf6 {[%emt 0:00:00]} 4. Bb5 {[%emt 0:00:00]} Nd4 {[%emt 0:00:00]} 5. Nxd4 {[%emt 0:00:00]} exd4 {[%emt 0:00:00]} 6. e5 {[%emt 0:00:00]} dxc3 {[%emt 0:00:00]} 7. exf6 {[%emt 0:00:00]} Qxf6 {[%emt 0:00:00]} 8. dxc3 {[%emt 0:00:00]} Bc5 {[%emt 0:00:00]} 9. Qe2+ {[%emt 0:00:00] The position is equal.} Qe7 $1 {[%emt 0:03:54][%mdl 4] is more profitable than 9...Qe6 at the moment. C48: Four Knights: 4 Bb5, replies other than 4...Bb4.} 10. O-O {[%emt 0:00:00]} Qxe2 {[%emt 0:12:19]} 11. Bxe2 {[%emt 0:00:00]} d5 {[%emt 0:00:24]} 12. Re1 {[%emt 0:15:33]} Be6 {[%emt 0:15:19]} 13. Bd3 {[%emt 0:15:20]} O-O-O {[%emt 0:07:13] [#]} 14. Bf4 $146 {[%emt 0:12:05]} ({Predecessor:} 14. Bg5 Rd7 15. Be3 d4 16. cxd4 {½-½ (17) Reinhart,K (2463)-Barnsley,A (2566) ICCF email 2006}) 14... h6 {[%emt 0:21:00]} 15. Be5 {[%emt 0:01:36]} Rhg8 {[%emt 0:00:06]} 16. Bh7 {[%emt 0:00:44]} Rh8 {[%emt 0:00:07]} 17. Bd3 {[%emt 0:00:08]} Rhg8 {[%emt 0:00:05]} 18. Bh7 {[%emt 0:00:10]} Rh8 {[%emt 0:00:42]} 19. Bd3 {[%emt 0:00:07] A balanced but interesting game.  Weighted Error Value: White=0.01 (flawless) /Black=0.00 (flawless)} 1/2-1/2